lending/lending_fUSD_20250501
["ID","MTS","AMOUNT","RATE_DAILY","PERIOD"]
[359551694,1746111665751,500.0,0.00018,2]
[359551695,1746111693343,482.6,0.00019,2]
[359551696,1746111755171,150.0,0.00018834,2]
[359551709,1746111838679,500.349,0.00029973,30]
[359551710,1746111897970,-15000.0,0.00045627,30]
[359551711,1746111897997,-151.33963778,0.00045627,30]
[359551712,1746111898023,-1000.0,0.00045627,30]
[359551713,1746111898050,-511.84844641,0.00045627,30]
[359551714,1746111898076,-1010.81526649,0.00045627,30]
[359551715,1746111898101,-241.98546056,0.00045627,30]
[359551716,1746111898128,-573833.72374099,0.00045627,30]
[359551717,1746111898153,-1262.80184128,0.00045627,30]
[359551718,1746111898179,-626.8408593,0.00045627,30]
[359551719,1746111898204,-494.1615912,0.00045627,30]
[359551720,1746111898229,-275.38166269,0.00045627,30]
[359551721,1746111898255,-2405591.1014933,0.00045627,30]
[359551722,1746111898974,4000.0,0.00032876,60]
[359551723,1746111901697,-3000000.0,0.00045627,30]
[359551724,1746111905356,-3000000.0,0.00045627,30]
[359551725,1746111912865,-6000000.0,0.00045627,30]
[359551726,1746111913079,1000.0,0.00018866,2]
[359551727,1746111917818,-1372995.5885067,0.00045627,30]
[359551728,1746111917846,-298.17726753,0.00045627,30]
[359551729,1746111917873,-293.71394297,0.00045627,30]
[359551730,1746111917902,-562.24180517,0.00045627,30]
[359551731,1746111917934,-500.0,0.00045627,30]
[359551732,1746111917965,-250.0,0.00045627,30]
[359551733,1746111917993,-112214.31800102,0.00045627,30]
[359551734,1746111918020,-50000.0,0.00045627,30]
[359551735,1746111918048,-336429.49016317,0.00045627,30]
[359551736,1746111918077,-1729.97027161,0.00045627,30]
[359551737,1746111918104,-30932.84489433,0.00045627,30]
[359551738,1746111918527,-1838.0,0.00045627,30]
[359551739,1746111918557,-4091955.6551475,0.00045627,30]
[359551740,1746111923235,-282419.6148525,0.00045627,30]
[359551741,1746111923263,-463.09713616,0.00045627,30]
[359551742,1746111923289,-1410.22990302,0.00045627,120]
[359551743,1746111923316,-1094.92516013,0.00045627,120]
[359551744,1746111923341,-219.0,0.00045627,120]
[359551745,1746111923368,-464.21610209,0.00045627,30]
[359551746,1746111923396,-196.86558408,0.00045627,60]
[359551747,1746111923426,-498.71012543,0.00045627,60]
[359551748,1746111923458,-164.60380514,0.00045627,120]
[359551749,1746111923486,-226.90937148,0.00045627,120]
[359551750,1746111923516,-173.2832525,0.00045627,60]
[359551751,1746111923544,-158.22619944,0.00045627,60]
[359551752,1746111923572,-153.90482827,0.00045627,30]
[359551753,1746111923600,-648.79469976,0.00045627,30]
[359551754,1746111923629,-158.27138968,0.00045627,120]
[359551755,1746111923657,-1003.18977538,0.00045627,30]
[359551756,1746111923685,-328.65,0.00045627,120]
[359551757,1746111923714,-10821.0,0.00045627,30]
[359551758,1746111923742,-7566.63806789,0.00045627,30]
[359551759,1746111923771,-191.67,0.00045627,31]
[359551760,1746111923800,-450.0,0.00045627,31]
[359551761,1746111923829,-450.0,0.00045627,31]
[359551762,1746111923858,-450.0,0.00045627,31]
[359551763,1746111923887,-450.0,0.00045627,31]
[359551764,1746111923916,-450.0,0.00045627,31]
[359551765,1746111923946,-450.0,0.00045627,31]
[359551766,1746111923973,-450.0,0.00045627,31]
[359551767,1746111924000,-450.0,0.00045627,31]
[359551768,1746111924032,-450.0,0.00045627,31]
[359551769,1746111924060,-357.63550518,0.00045627,31]
[359551770,1746111924089,-450.0,0.00045627,31]
[359551771,1746111924116,-450.0,0.00045627,31]
[359551772,1746111924144,-450.0,0.00045627,31]
[359551773,1746111924173,-450.0,0.00045627,31]
[359551774,1746111924201,-450.0,0.00045627,31]
[359551775,1746111924229,-450.0,0.00045627,31]
[359551776,1746111924256,-450.0,0.00045627,31]
[359551777,1746111924285,-450.0,0.00045627,31]
[359551778,1746111924313,-450.0,0.00045627,31]
[359551779,1746111924342,-450.0,0.00045627,31]
[359551780,1746111924369,-450.0,0.00045627,31]
[359551781,1746111924396,-450.0,0.00045627,31]
[359551782,1746111924423,-450.0,0.00045627,31]
[359551783,1746111924452,-450.0,0.00045627,31]
[359551784,1746111924479,-450.0,0.00045627,31]
[359551785,1746111924509,-450.0,0.00045627,31]
[359551786,1746111924541,-450.0,0.00045627,31]
[359551787,1746111924570,-450.0,0.00045627,31]
[359551788,1746111924598,-450.0,0.00045627,31]
[359551789,1746111924627,-450.0,0.00045627,31]
[359551790,1746111924654,-450.0,0.00045627,31]
[359551791,1746111924685,-450.0,0.00045627,31]
[359551792,1746111924713,-450.0,0.00045627,31]
[359551793,1746111924742,-450.0,0.00045627,31]
[359551794,1746111924770,-450.0,0.00045627,31]
[359551795,1746111924797,-450.0,0.00045627,31]
[359551796,1746111924824,-450.0,0.00045627,31]
[359551797,1746111924868,-450.0,0.00045627,31]
[359551798,1746111924913,-450.0,0.00045627,31]
[359551799,1746111924956,-260.49930877,0.00045627,31]
[359551800,1746111925001,-450.0,0.00045627,31]
[359551801,1746111925048,-450.0,0.00045627,31]
[359551802,1746111925094,-450.0,0.00045627,31]
[359551803,1746111925147,-450.0,0.00045627,31]
[359551804,1746111925202,-450.0,0.00045627,31]
[359551805,1746111925250,-450.0,0.00045627,31]
[359551806,1746111925295,-450.0,0.00045627,31]
[359551807,1746111925343,-450.0,0.00045627,31]
[359551808,1746111925398,-450.0,0.00045627,31]
[359551809,1746111925441,-517.31550752,0.00045627,31]
[359551810,1746111925490,-1584.96817045,0.00045627,30]
[359551811,1746111925539,-3677.1055117,0.00045627,30]
[359551812,1746111925587,-4380.79,0.00045627,31]
[359551813,1746111925636,-4380.79,0.00045627,31]
[359551814,1746111925919,-4380.79,0.00045627,31]
[359551815,1746111925971,-4380.79,0.00045627,31]
[359551816,1746111926017,-4380.79,0.00045627,31]
[359551817,1746111926065,-4380.79,0.00045627,31]
[359551818,1746111926114,-4380.79,0.00045627,31]
[359551819,1746111926161,-4380.79,0.00045627,31]
[359551820,1746111926209,-4380.79,0.00045627,31]
[359551821,1746111926263,-4380.79,0.00045627,31]
[359551822,1746111926320,-4380.79,0.00045627,31]
[359551823,1746111926377,-4380.79,0.00045627,31]
[359551824,1746111926424,-4380.79,0.00045627,31]
[359551825,1746111926470,-4380.79,0.00045627,31]
[359551826,1746111926516,-4380.79,0.00045627,31]
[359551827,1746111926567,-4380.79,0.00045627,31]
[359551828,1746111926615,-4380.79,0.00045627,31]
[359551829,1746111926663,-4380.79,0.00045627,31]
[359551830,1746111926709,-4380.79,0.00045627,31]
[359551831,1746111926754,-4380.79,0.00045627,31]
[359551832,1746111926798,-4380.79,0.00045627,31]
[359551833,1746111926841,-4380.79,0.00045627,31]
[359551834,1746111926888,-4380.79,0.00045627,31]
[359551835,1746111926932,-4380.99,0.00045627,31]
[359551836,1746111926976,-531.35574851,0.00045627,120]
[359551837,1746111927020,-782.28,0.00045627,31]
[359551838,1746111927062,-782.28,0.00045627,31]
[359551839,1746111927107,-782.28,0.00045627,31]
[359551840,1746111927151,-782.28,0.00045627,31]
[359551841,1746111927195,-782.28,0.00045627,31]
[359551842,1746111927237,-782.28,0.00045627,31]
[359551843,1746111927282,-782.28,0.00045627,31]
[359551844,1746111927327,-782.28,0.00045627,31]
[359551845,1746111927385,-782.28,0.00045627,31]
[359551846,1746111927441,-782.28,0.00045627,31]
[359551847,1746111927487,-782.28,0.00045627,31]
[359551848,1746111927535,-782.28,0.00045627,31]
[359551849,1746111927580,-782.28,0.00045627,31]
[359551850,1746111927626,-782.28,0.00045627,31]
[359551851,1746111927676,-782.28,0.00045627,31]
[359551852,1746111927724,-782.28,0.00045627,31]
[359551853,1746111927771,-782.28,0.00045627,31]
[359551854,1746111927827,-782.28,0.00045627,31]
[359551855,1746111927874,-782.28,0.00045627,31]
[359551856,1746111927921,-782.28,0.00045627,31]
[359551857,1746111927968,-782.28,0.00045627,31]
[359551858,1746111928014,-782.28,0.00045627,31]
[359551859,1746111928065,-782.28,0.00045627,31]
[359551860,1746111928111,-782.41,0.00045627,31]
[359551861,1746111928154,-2125.3865766,0.00045627,30]
[359551862,1746111928201,-1997.022112,0.00045627,120]
[359551863,1746111928247,-39395.025,0.00045627,40]
[359551864,1746111928293,-1000000.0,0.00045627,30]
[359551865,1746111928339,-2505.9771751,0.00045627,30]
[359551866,1746111928388,-50000.0,0.00045627,30]
[359551867,1746111928435,-50000.0,0.00045627,31]
[359551868,1746111928484,-50000.0,0.00045627,32]
[359551869,1746111928536,-50000.0,0.00045627,33]
[359551870,1746111928582,-50000.0,0.00045627,34]
[359551871,1746111928628,-550.0,0.00045627,32]
[359551872,1746111928676,-500.0,0.00045627,30]
[359551873,1746111928726,-450.0,0.00045627,31]
[359551874,1746111928771,-465.65,0.00045627,31]
[359551875,1746111928815,-470.0,0.00045627,31]
[359551876,1746111928861,-470.0,0.00045627,31]
[359551877,1746111928908,-526.49978026,0.00045627,120]
[359551878,1746111928956,-4379.75,0.00045627,120]
[359551879,1746111929005,-470.0,0.00045627,31]
[359551880,1746111929051,-1714486.70744487,0.00045627,30]
[359551881,1746111929098,-6073.55303667,0.00045627,120]
[359551882,1746111929142,-1086.15847055,0.00045627,120]
[359551883,1746111929186,-2082.67292034,0.00045627,120]
[359551884,1746111929230,-450.0,0.00045627,31]
[359551885,1746111929275,-472.29,0.00045627,31]
[359551886,1746111929327,-470.0,0.00045627,31]
[359551887,1746111929373,-500.0,0.00045627,30]
[359551888,1746111929418,-1452.53535307,0.00045627,30]
[359551889,1746111929469,-1440.09,0.00045627,30]
[359551890,1746111929515,-373439.1,0.00045627,30]
[359551891,1746111929560,-470.0,0.00045627,60]
[359551892,1746111929604,-399.33491864,0.00045627,30]
[359551893,1746111929656,-176.0,0.00045627,120]
[359551894,1746111929703,-1000.0,0.00045627,31]
[359551895,1746111929751,-470.0,0.00045627,60]
[359551896,1746111929800,-1073.0,0.00045627,30]
[359551897,1746111929845,-1073.0,0.00045627,30]
[359551898,1746111929890,-1073.0,0.00045627,30]
[359551899,1746111929935,-1073.0,0.00045627,30]
[359551900,1746111929980,-1121.87024348,0.00045627,30]
[359551901,1746111930027,-500.0,0.00045627,60]
[359551902,1746111930073,-283.45,0.00045627,60]
[359551903,1746111930116,-1478160.91375714,0.00045627,30]
[359551904,1746111930159,-513993.8,0.00045627,120]
[359551905,1746111930206,-10726.05139497,0.00045627,31]
[359551906,1746111930250,-500.0,0.00045627,120]
[359551907,1746111930297,-500.0,0.00045627,120]
[359551908,1746111930343,-500.0,0.00045627,120]
[359551909,1746111930388,-500.0,0.00045627,120]
[359551910,1746111930744,-500.0,0.00045627,120]
[359551911,1746111930791,-500.0,0.00045627,120]
[359551912,1746111930837,-441.29074475,0.00045627,120]
[359551914,1746112103859,157.54,0.00018877,2]
[359551915,1746112112965,23900.0,0.00018874,2]
[359551916,1746112124561,508.36,0.000313,120]
[359551917,1746112124860,508.36,0.000316,120]
[359551918,1746112125196,508.36,0.000319,120]
[359551919,1746112125547,508.36,0.000322,120]
[359551920,1746112125829,508.36,0.000325,120]
[359551921,1746112126117,508.36,0.000328,120]
[359551922,1746112129660,500.0,0.00018836,2]
[359551923,1746112142937,150.0,0.00032867,60]
[359551924,1746112148220,508.25,0.000313,120]
[359551925,1746112148525,508.25,0.000316,120]
[359551926,1746112148838,508.25,0.000319,120]
[359551927,1746112149141,508.25,0.000322,120]
[359551928,1746112149862,508.25,0.000325,120]
[359551929,1746112150189,508.25,0.000328,120]
[359551930,1746112207690,1973.93,0.0003287,60]
[359551938,1746112232111,-250.0,0.00019618,2]
[359551939,1746112232120,-200.0,0.00019618,2]
[359551940,1746112232130,-200.0,0.00019666,2]
[359551941,1746112232139,-150.0,0.00019695,2]
[359551942,1746112232148,-479.567,0.00019696,2]
[359551943,1746112232157,-232.63005563,0.00019696,2]
[359551944,1746112232171,-150.0,0.00019702,2]
[359551945,1746112232181,-300.0,0.00019707,2]
[359551946,1746112232191,-1200.0,0.00019707,2]
[359551947,1746112232200,-112.05565583,0.00019708,2]
[359551948,1746112232222,-887.94434417,0.00019708,2]
[359551949,1746112232232,-300.0,0.00019708,2]
[359551950,1746112232241,-97.95910628,0.00019709,2]
[359551951,1746112232253,-562.76417773,0.00019709,2]
[359551952,1746112232264,-7211.0,0.00019709,2]
[359551953,1746112232305,-88511.2117552,0.00019709,2]
[359551954,1746112232315,-175.1,0.0001971,2]
[359551955,1746112232325,-150.99,0.0001971,2]
[359551956,1746112232335,-7192.23,0.0001971,2]
[359551957,1746112232345,-694.02,0.0001971,2]
[359551958,1746112232356,-1000.0,0.00019714,2]
[359551959,1746112232367,-999.99,0.00019714,2]
[359551960,1746112232378,-1000.0,0.00019716,2]
[359551961,1746112232388,-150.0,0.00019724,2]
[359551962,1746112232398,-150.0,0.00019728,2]
[359551963,1746112232408,-1000.0,0.00019742,2]
[359551964,1746112232421,-1000.0,0.00019753,2]
[359551965,1746112232431,-150.0,0.00019767,2]
[359551966,1746112232441,-945.98637813,0.00019778,2]
[359552223,1746112238321,-686.75421564,0.00019778,2]
[359552224,1746112238407,-426.63748379,0.00019778,2]
[359552225,1746112238422,-582.9821704,0.00019778,2]
[359552226,1746112238555,-27365.24697417,0.00019778,2]
[359552227,1746112238565,-150.0,0.00019779,2]
[359552228,1746112238576,-1000.0,0.00019785,2]
[359552229,1746112238587,-150.0,0.00019798,2]
[359552230,1746112238597,-1000.0,0.00019799,2]
[359552248,1746112238868,-215.30160749,0.000198,2]
[359552250,1746112238878,-270.0588,0.000198,2]
[359552252,1746112238887,-1115.0421,0.000198,2]
[359552254,1746112238896,-150.0,0.00019809,2]
[359552256,1746112238906,-150.0,0.00019816,2]
[359552258,1746112238916,-1000.0,0.00019819,2]
[359552260,1746112238929,-1000.0,0.00019832,2]
[359552262,1746112238938,-1000.0,0.00019834,2]
[359552264,1746112238948,-795.0231934,0.00019844,2]
[359552266,1746112238960,-204.9768066,0.00019844,2]
[359552268,1746112238970,-926.60179343,0.00019853,2]
[359552270,1746112238980,-557.7561795,0.00019855,2]
[359552272,1746112238989,-1000.0,0.0001986,2]
[359552274,1746112239000,-1000.0,0.00019862,2]
[359552276,1746112239010,-150.0,0.00019869,2]
[359552278,1746112239020,-1000.0,0.00019872,2]
[359552279,1746112239029,-2793.93722047,0.00019874,2]
[359552282,1746112239045,-534.43249321,0.00019874,2]
[359552284,1746112239056,-1465.71211129,0.00019874,2]
[359552287,1746112239068,-1011.93866303,0.00019874,2]
[359552289,1746112239080,-1000.0,0.00019879,2]
[359552291,1746112239090,-1000.0,0.00019886,2]
[359552293,1746112239099,-2104.1417,0.00019886,2]
[359552295,1746112239108,-1000.0,0.00019889,2]
[359552297,1746112239118,-12266.6117,0.000199,2]
[359552299,1746112239127,-270.31604725,0.000199,2]
[359552301,1746112239137,-197.80271942,0.000199,2]
[359552303,1746112239146,-263.81890904,0.000199,2]
[359552305,1746112239155,-787.19927607,0.000199,2]
[359552307,1746112239165,-1000.0,0.00019901,2]
[359552308,1746112239179,-14210.29923407,0.00019903,2]
[359552310,1746112239190,-150.0,0.00019915,2]
[359552312,1746112239201,-1045.51464563,0.00019921,2]
[359552314,1746112239211,-150.0,0.00019922,2]
[359552316,1746112239222,-993.0,0.00019924,2]
[359552318,1746112239232,-150.0,0.00019934,2]
[359552320,1746112239242,-1000.0,0.00019945,2]
[359552322,1746112239252,-150.0,0.0001995,2]
[359552324,1746112239261,-150.0,0.00019955,2]
[359552326,1746112239271,-508.0,0.00019959,2]
[359552328,1746112239280,-150.0,0.00019959,2]
[359552330,1746112239289,-150.0,0.00019967,2]
[359552332,1746112239299,-1804.78,0.00019968,2]
[359552334,1746112239308,-150.0,0.00019975,2]
[359552336,1746112239317,-5129.6108582,0.00019986,2]
[359552338,1746112239327,-413.24939731,0.00019986,2]
[359552340,1746112239336,-22.58735773,0.00019986,2]
[359552342,1746112239349,-128.41264227,0.00019986,2]
[359552344,1746112239358,-930.78635697,0.00019986,2]
[359552426,1746112240323,-966.38784203,0.00019986,2]
[359552427,1746112240333,-1897.174199,0.00019986,2]
[359552428,1746112240342,-246.528525,0.00019986,2]
[359552429,1746112240352,-151.0,0.00019986,2]
[359552430,1746112240361,-151.0,0.00019986,2]
[359552432,1746112240371,-151.0,0.00019986,2]
[359552433,1746112240380,-500.0,0.00019999,2]
[359552435,1746112240390,-300.0,0.00019999,2]
[359552437,1746112240400,-500.0,0.00019999,2]
[359552439,1746112240409,-500.0,0.00019999,2]
[359552441,1746112240421,-962.97134597,0.00019999,2]
[359552443,1746112240431,-5402.80837779,0.0002,2]
[359552459,1746112240584,-351.91236055,0.0002,2]
[359552461,1746112240598,-9912.98837638,0.0002,2]
[359552463,1746112240610,-35863.53657335,0.0002,2]
[359552466,1746112240623,-5210.52247412,0.0002,2]
[359552468,1746112240637,-307.4250074,0.0002,2]
[359552470,1746112240648,-4271.6127708,0.0002,2]
[359552472,1746112240660,-38948.99672109,0.0002,2]
[359552474,1746112240677,-27915.20693598,0.0002,2]
[359552514,1746112243503,-3637.4546,0.0002,2]
[359552515,1746112243526,-4825.02080114,0.0002,2]
[359552516,1746112243549,-533.56206599,0.0002,2]
[359552517,1746112243723,-73900.64712565,0.0002,2]
[359552656,1746112245079,-1000.0,0.0002,2]
[359552661,1746112245338,-9179.62520299,0.0002,2]
[359552662,1746112245349,-527.55520127,0.0002,2]
[359552667,1746112246097,-5030.65055664,0.0002,2]
[359552668,1746112246276,-1171.19999994,0.0002,2]
[359552669,1746112246380,-3097.4849216,0.0002,2]
[359552670,1746112246391,-18944.2128,0.0002,2]
[359552671,1746112246403,-2734.91860751,0.0002,2]
[359552672,1746112246414,-1734.44,0.0002,2]
[359552856,1746112251291,200.0,0.00032876,60]
[359552857,1746112272472,300.0,0.000197,7]
[359552858,1746112274586,600.0,0.000198,7]
[359552859,1746112276706,900.0,0.000199,7]
[359552860,1746112281730,1624.3,0.00018531,2]
[359552861,1746112331630,244.46068,0.0002,23]
[359552862,1746112374804,1256.11,0.0001887,2]
[359552863,1746112465697,250.0,0.00017,2]
[359552864,1746112466484,300.0,0.00019,2]
[359552865,1746112551445,200.0,0.00032876,60]
[359552866,1746112589281,1600.0,0.00026756,120]
[359552867,1746112589502,1600.0,0.00029188,120]
[359552868,1746112613435,3000.0,0.00032876,120]
[359552869,1746112625517,1124.7,0.00030137,120]
[359552870,1746112637228,244.46069,0.000248,34]
[359552871,1746112637289,244.46068,0.000273,39]
[359552872,1746112637377,244.46069,0.000298,44]
[359552873,1746112681697,2016.639,0.00032877,60]
[359552874,1746112701257,1445.67524281,0.00019,2]
[359552875,1746112705121,250.0,0.00019229,2]
[359552876,1746112817278,500.0,0.00032876,120]
[359552877,1746112817562,500.0,0.00032876,120]
[359552878,1746112817919,500.0,0.00032876,120]
[359552879,1746112818098,500.0,0.00032876,120]
[359552880,1746112818302,500.0,0.00032876,120]
[359552881,1746112818560,500.0,0.00032876,120]
[359552882,1746112818792,500.0,0.00032876,120]
[359552883,1746112819232,500.0,0.00032876,120]
[359552884,1746112819404,500.0,0.00032876,120]
[359552885,1746112819518,500.0,0.00032876,120]
[359552886,1746112819791,500.0,0.00032876,120]
[359552887,1746112820022,500.0,0.00032876,120]
[359552888,1746112820267,500.0,0.00032876,120]
[359552889,1746112820535,284.65114848,0.00032876,120]
[359552890,1746112833239,247.75,0.00027425,30]
[359552891,1746112851263,200.0,0.00032876,60]
[359552892,1746112942750,244.46069,0.0002595,36]
[359552893,1746113092786,2480.204109,0.00019312,2]
[359552894,1746113107076,1000.0,0.0003,30]
[359552896,1746113111826,302.0,0.00032877,60]
[359552897,1746113128165,429.74997671,0.00023,120]
[359552898,1746113132325,1038.5790322,0.0002,120]
[359552900,1746113211110,637.01551994,0.00032876,60]
[359552901,1746113230243,396.68636142,0.0003,120]
[359552902,1746113230574,2082.35356219,0.0002301,120]
[359552903,1746113237786,550.26933303,0.0003287,120]
[359552904,1746113267314,990.38962257,0.0003,120]
[359552905,1746113272502,2020.0,0.0002,120]
[359552906,1746113289839,236.97661361,0.00028,120]
[359552907,1746113310659,242.9961899,0.00028799,120]
[359552908,1746113313276,1488.73466325,0.0003,120]
[359552909,1746113314431,870.29909153,0.00030137,120]
[359552910,1746113323351,647.79778658,0.0002,120]
[359552911,1746113324846,1998.95814945,0.00032877,60]
[359552912,1746113328458,159.87891,0.0002,23]
[359552913,1746113344591,1000.0,0.00019257,2]
[359552921,1746113371308,244.46069,0.0002,23]
[359552922,1746113381458,628.05,0.00019206,2]
[359552923,1746113386462,2446.04,0.00019206,2]
[359552933,1746113432310,-300.0,0.00019375,2]
[359552934,1746113432320,-1200.0,0.00019375,2]
[359552935,1746113432329,-300.0,0.00019375,2]
[359552936,1746113432339,-250.0,0.00019375,2]
[359552937,1746113432349,-200.0,0.00019376,2]
[359552938,1746113432358,-268.21,0.00019376,2]
[359552939,1746113432368,-1659.5496,0.00019376,2]
[359552940,1746113432379,-1179.29253532,0.00019376,2]
[359552941,1746113432390,-367.45633722,0.00019376,2]
[359552942,1746113432462,-4522.01405745,0.00019376,2]
[359552943,1746113432474,-5176.2930862,0.00019376,2]
[359552944,1746113432515,-1342.74998343,0.00019376,2]
[359552945,1746113432547,-4614.0349803,0.00019376,2]
[359553057,1746113439374,-5038.60942008,0.00019376,2]
[359553058,1746113439384,-1465.93,0.00019376,2]
[359553059,1746113439394,-1600.0,0.00019459,2]
[359553060,1746113439403,-250.0,0.00019561,2]
[359553061,1746113439413,-774.49,0.00019565,2]
[359553062,1746113439422,-1291.0,0.000196,2]
[359553063,1746113439432,-300.0,0.00019699,2]
[359553064,1746113439441,-1675.0,0.000197,2]
[359553065,1746113439453,-1000.0,0.000197,2]
[359553066,1746113439462,-1000.0,0.000197,2]
[359553067,1746113439471,-220.0,0.00019781,2]
[359553068,1746113439481,-1016.56,0.00019799,2]
[359553069,1746113439490,-150.99,0.00019799,2]
[359553070,1746113439499,-488.99,0.000198,2]
[359553071,1746113439508,-1875.2193,0.000199,2]
[359553072,1746113439518,-1152.1359,0.000199,2]
[359553073,1746113439528,-450.58424001,0.000199,2]
[359553074,1746113439538,-158.24217552,0.000199,2]
[359553075,1746113439548,-551.3845827,0.000199,2]
[359553076,1746113439558,-2674.70532848,0.000199,2]
[359553077,1746113439568,-2062.94212824,0.000199,2]
[359553078,1746113439578,-851.8784,0.000199,2]
[359553079,1746113439588,-226.2375,0.000199,2]
[359553080,1746113439598,-307.0143591,0.000199,2]
[359553081,1746113439606,-618.51482666,0.00019917,2]
[359553082,1746113439616,-207.4,0.00019953,2]
[359553083,1746113439626,-151.0,0.00019954,2]
[359553084,1746113439635,-700.99332736,0.00019954,2]
[359553085,1746113439644,-498.36371563,0.00019963,2]
[359553086,1746113439654,-3078.056,0.00019963,2]
[359553087,1746113439664,-156.43526051,0.00019973,2]
[359553088,1746113439673,-3935.3145,0.00019973,2]
[359553089,1746113439683,-500.0,0.00019973,2]
[359553090,1746113439693,-459.34394019,0.00019973,2]
[359553091,1746113439702,-500.0,0.00019973,2]
[359553092,1746113439712,-256.64092137,0.00019973,2]
[359553093,1746113439721,-500.0,0.00019973,2]
[359553094,1746113439731,-151.0,0.00019986,2]
[359553095,1746113439740,-168.91563715,0.0001999,2]
[359553096,1746113439749,-500.0,0.00019999,2]
[359553097,1746113439758,-284.98838579,0.00019999,2]
[359553098,1746113439768,-180157.7554321,0.0002,2]
[359553099,1746113440033,-977.10516504,0.0002,2]
[359553100,1746113440047,-39965.559832,0.0002,2]
[359553101,1746113440059,-2202.225,0.0002,2]
[359553139,1746113440790,-3771.04820614,0.0002,2]
[359553141,1746113440802,-1233.24381051,0.0002,2]
[359553146,1746113440840,-1870.89999997,0.0002,2]
[359553168,1746113443797,-443.7300035,0.0002,2]
[359553169,1746113443841,-159013.40245374,0.0002,2]
[359553170,1746113443992,-504341.47501273,0.0002,2]
[359553171,1746113444004,-24331.84565539,0.0002,2]
[359553172,1746113444059,-3071.39999961,0.0002,2]
[359553195,1746113446550,-1555.6,0.0002,2]
[359553196,1746113446562,-2387.8942304,0.0002,2]
[359553197,1746113446692,-28360.66649861,0.0002,2]
[359553198,1746113446705,-7317.43275747,0.0002,2]
[359553199,1746113446717,-19506.12022592,0.0002,2]
[359553202,1746113498914,1543.08,0.00018782,2]
[359553203,1746113684591,1512.9,0.00032877,60]
[359553204,1746113722982,2021.33,0.0003287,60]
[359553205,1746113812963,2000.0,0.00032876,60]
[359553206,1746113886448,1008.0,0.00032877,60]
[359553207,1746113978160,150.0,0.00032867,60]
[359553209,1746114042874,1000.0,0.00032,60]
[359553210,1746114046325,642.80104056,0.00032877,60]
[359553211,1746114046379,1003.9,0.00026691,120]
[359553212,1746114046737,1003.9,0.00029118,120]
[359553214,1746114062285,500.0,0.00032877,60]
[359553215,1746114063190,500.0,0.00032877,60]
[359553216,1746114063970,500.0,0.00032877,60]
[359553217,1746114064815,500.0,0.00032877,60]
[359553218,1746114065677,500.0,0.00032877,60]
[359553219,1746114067148,500.0,0.00032877,60]
[359553220,1746114085302,1000.0,0.00032,120]
[359553222,1746114208024,21591.8403982,0.000328,120]
[359553223,1746114212888,1127.33101139,0.0003287,60]
[359553224,1746114259164,239.86,0.00027425,30]
[359553225,1746114283011,250.0,0.00017,2]
[359553226,1746114284093,300.0,0.00019,2]
[359553227,1746114418341,-1200.0,0.0001932,2]
[359553228,1746114418363,-300.0,0.0001932,2]
[359553229,1746114418386,-155.81472792,0.0001932,2]
[359553230,1746114418409,-3021.46646397,0.00019321,2]
[359553231,1746114428505,150.0,0.0002,7]